bitfinex/quotes_ETHUSD_20220308
["timestamp","ask_amount","ask_price","bid_price","bid_amount"]
[1646754695648,13.34937,2549.6,2548.8,2.94389]
[1646754695649,16.84937,2549.6,2548.8,2.94389]
[1646754695844,0.16416413,2549.5,2548.8,2.94389]
[1646754696046,0.98166,2549.3,2548.9,0.98165]
[1646754696249,12.368,2549.2,2548.9,0.98165]
[1646754696444,0.468,2549.2,2548.9,0.98165]
[1646754697292,11.9,2549.1,2548.9,0.98165]
[1646754697590,12.88164,2549.1,2548.9,0.98165]
[1646754697989,0.98164,2549.1,2548.9,3.98165]
[1646754698190,0.98164,2549.1,2548.9,3.98699265]
[1646754698991,2.43127,2549.2,2549.1,0.68776184]
[1646754699895,14.33127,2549.2,2549.1,0.68776184]
[1646754700946,2.43127,2549.2,2549.1,0.68776184]
[1646754701337,1.96327,2549.2,2549.1,0.68776184]
[1646754701638,0.98689185,2549.3,2549.1,0.68776184]
[1646754701840,0.98155,2549.3,2549.1,0.68776184]
[1646754702635,0.98155,2549.3,2549.2,3.0]
[1646754702835,0.98155,2549.3,2549.1,0.98776184]
[1646754703035,0.98627477,2549.3,2549.2,3.0]
[1646754703436,0.98627477,2549.3,2549.1,0.98776184]
[1646754703636,0.98627477,2549.3,2549.2,4.05046689]
[1646754703837,0.98627477,2549.3,2549.2,3.0]
[1646754704240,12.88155,2549.3,2549.2,3.0]
[1646754704438,0.98155,2549.3,2549.2,3.0]
[1646754705994,0.468,2550.0,2549.4,5.0]
[1646754706194,5.7062,2550.2,2549.9,3.0]
[1646754706393,2.968,2550.4,2550.1,3.0]
[1646754706595,1.22937351,2550.8,2550.2,1.08454045]
[1646754706596,1.96199,2550.6,2550.2,1.08454045]
[1646754706795,5.572,2550.7,2550.1,1.17120479]
[1646754706996,5.572,2550.7,2549.6,7.29]
[1646754707198,17.472,2550.7,2550.5,0.98098]
[1646754707401,11.9,2550.7,2550.5,0.98098]
[1646754707898,12.88091,2550.7,2550.5,0.98098]
[1646754708540,0.98091,2550.7,2550.6,3.0]
[1646754709041,0.98091,2550.7,2550.5,3.98098]
[1646754709241,1.96176,2550.9,2550.5,4.28098]
[1646754709446,10.69175,2551.2,2550.8,3.0]
[1646754709642,10.69175,2551.2,2551.1,3.0]
[1646754709643,7.84105,2551.2,2551.1,3.0]
[1646754709846,1.96155,2551.2,2551.1,3.0]
[1646754710249,2.20378033,2551.2,2551.1,3.0]
[1646754710648,2.20378033,2551.2,2550.7,0.3887]
[1646754710649,0.24223033,2551.2,2550.9,1.96137]
[1646754710845,0.24223033,2551.2,2551.1,3.0]
[1646754711048,0.24223033,2551.2,2551.0,3.0]
[1646754711247,0.24223033,2551.2,2550.5,0.3]
[1646754711453,5.0,2551.0,2549.6,7.29]
[1646754711648,11.9,2550.6,2549.4,0.96692]
[1646754711849,0.97323037,2549.9,2549.4,0.96692]
[1646754712048,0.97323037,2549.9,2549.8,1.9623]
[1646754712049,12.87323037,2549.9,2549.8,1.9623]
[1646754712291,0.24322168,2549.9,2549.6,0.98129]
[1646754712494,0.468,2550.4,2549.6,0.98129]
[1646754712698,0.468,2550.4,2549.6,1.36999]
[1646754712699,0.00261254,2549.8,2549.6,1.36999]
[1646754712896,0.00261254,2549.8,2549.6,0.98129]
[1646754713296,0.00261254,2549.8,2549.7,1.19129371]
[1646754713693,0.24319455,2550.3,2549.7,1.19129371]
[1646754713893,0.00261254,2549.8,2549.7,1.19129371]
[1646754714095,0.00261254,2549.8,2549.7,3.88935551]
[1646754714293,0.00261254,2549.8,2549.7,5.18935551]
[1646754714495,0.00261254,2549.8,2549.7,4.80065551]
[1646754714693,0.00261254,2549.8,2549.7,3.45811371]
[1646754715098,0.00520262,2549.9,2549.7,3.80169495]
[1646754715301,0.00520262,2549.9,2549.7,3.22887]
[1646754715500,0.24410277,2549.8,2549.7,3.22887]
[1646754715697,0.24410277,2549.8,2549.7,1.26682]
[1646754717140,0.00520262,2549.9,2549.7,2.61124337]
[1646754717340,13.1211113,2550.5,2549.7,2.26682]
[1646754717539,0.00520262,2549.9,2549.7,5.20959]
[1646754718142,0.00520262,2549.9,2549.7,3.90959]
[1646754718344,0.24432688,2549.8,2549.7,0.96682]
[1646754718544,11.9,2549.9,2549.7,1.94806]
[1646754718745,0.24432688,2549.8,2549.7,1.94806]
[1646754719145,1.36801028,2549.8,2549.7,0.74506356]
[1646754719547,13.26801028,2549.8,2549.7,0.74506356]
[1646754720095,13.26801028,2549.8,2549.4,1.96249]
[1646754720296,12.2887,2549.6,2549.2,1.96274]
[1646754720501,11.9,2549.4,2549.1,0.68776184]
[1646754720796,0.71232688,2549.3,2549.1,0.68776184]
[1646754720996,0.24432688,2549.2,2549.1,0.68776184]
[1646754723005,0.00261229,2549.5,2549.1,1.07646184]
[1646754723200,0.00261229,2549.5,2549.1,0.68776184]
[1646754723454,0.00261229,2549.5,2549.2,3.33208]
[1646754723743,0.00261229,2549.5,2549.2,2.94338]
[1646754723744,0.0053341,2549.5,2549.2,2.94338]
[1646754724142,0.0053341,2549.5,2549.3,0.24981525]
[1646754724344,12.88126,2549.6,2549.3,1.23121525]
[1646754724544,13.73796,2549.6,2549.3,0.9814]
[1646754724748,13.73796,2549.6,2549.1,0.68776184]
[1646754724749,11.9,2549.4,2549.1,0.68776184]
[1646754724948,11.9,2549.2,2549.1,0.68776184]
[1646754725148,2.4411576,2549.5,2549.1,0.68776184]
[1646754725149,0.00533431,2549.5,2549.1,0.68776184]
[1646754725353,2.35155,2549.4,2549.1,0.68776184]
[1646754725554,0.70142954,2549.3,2549.1,0.68776184]
[1646754725753,0.468,2549.2,2549.1,0.68776184]
[1646754725950,0.468,2549.3,2549.1,0.68776184]
[1646754726150,1.44937,2549.3,2549.1,0.68776184]
[1646754726951,0.98137,2549.3,2549.1,0.68776184]
[1646754727396,0.00245501,2549.5,2549.1,0.68776184]
[1646754727995,0.98127,2549.6,2549.2,1.10585036]
[1646754728201,0.98127,2549.6,2549.1,0.68776184]
[1646754728398,0.00517308,2549.5,2549.1,0.68776184]
[1646754729096,0.98137,2549.4,2549.1,0.68776184]
[1646754729497,2.08972875,2549.4,2549.1,0.68776184]
[1646754729695,0.98137,2549.4,2549.1,0.68776184]
[1646754730199,0.70675995,2549.5,2548.7,1.982e-05]
[1646754730200,11.9,2549.2,2548.7,1.982e-05]
[1646754730403,11.9,2549.2,2548.1,3.92586]
[1646754730404,2.5,2548.7,2548.1,3.92586]
[1646754730602,5.17917564,2548.7,2548.2,0.23833319]
[1646754730804,5.17917564,2548.7,2548.2,1.22008319]
[1646754731048,5.17917564,2548.7,2547.7,0.3887]
[1646754731049,11.9,2548.4,2547.7,1.9638]
[1646754731245,11.9,2548.4,2547.8,0.26202458]
[1646754731246,1.05321555,2548.0,2547.8,0.26202458]
[1646754731452,2.03521555,2548.0,2547.8,0.26202458]
[1646754733049,2.03521555,2548.0,2547.8,0.26709637]
[1646754733050,2.50321555,2548.0,2547.8,0.26709637]
[1646754733249,2.50321555,2548.0,2547.8,0.00507179]
[1646754733250,14.40321555,2548.0,2547.8,0.00507179]
[1646754733453,14.79191555,2548.0,2547.8,0.00507179]
[1646754733949,14.79191555,2548.0,2547.4,0.02029021]
[1646754734149,11.9,2547.8,2547.4,0.02029021]
[1646754734349,0.98214,2547.7,2547.4,0.02029021]
[1646754734549,0.98214,2547.7,2547.5,0.27500652]
[1646754734814,5.7879,2548.3,2547.5,4.16370652]
[1646754735010,0.00507009,2548.6,2547.5,4.16370652]
[1646754735214,0.98166,2548.5,2547.5,5.16370652]
[1646754735410,0.00507009,2548.6,2547.6,0.98182]
[1646754735411,11.9,2548.3,2547.6,0.98182]
[1646754735614,5.0,2548.2,2547.2,0.98193]
[1646754735813,5.0,2548.2,2547.8,0.00507179]
[1646754735814,11.9,2548.1,2547.8,0.00507179]
[1646754736016,0.468,2548.0,2547.8,0.00507179]
[1646754736213,2.7709,2548.2,2547.8,0.00507179]
[1646754736412,0.98196,2548.1,2547.8,0.00507179]
[1646754736612,0.76788531,2548.6,2547.7,1.96377]
[1646754736812,6.2559,2548.7,2547.8,0.20600581]
[1646754737514,13.99977368,2548.3,2547.8,0.20600581]
[1646754737715,11.9,2548.1,2547.2,0.26997345]
[1646754738013,1.11803368,2548.3,2547.5,0.98194]
[1646754738014,0.468,2548.0,2547.5,0.98194]
[1646754738213,0.468,2548.1,2547.6,0.24063663]
[1646754738462,11.9,2548.0,2546.9,0.61315932]
[1646754738651,11.9,2548.0,2547.2,1.04049071]
[1646754738652,0.87884706,2547.9,2547.2,1.04049071]
[1646754739051,16.77078,2547.8,2547.3,2.20192371]
[1646754739249,16.77078,2547.8,2546.7,2.00022053]
[1646754739250,17.23878,2547.8,2546.7,1.96407]
[1646754739449,11.9,2547.6,2546.8,1.25129288]
[1646754739648,11.9,2547.4,2546.8,1.25129288]
[1646754740051,12.368,2547.4,2546.8,1.25129288]
[1646754740251,13.41301957,2547.4,2546.8,1.25129288]
[1646754740453,13.41301957,2547.4,2547.0,0.00532988]
[1646754741052,12.368,2547.4,2547.0,0.00532988]
[1646754741257,12.368,2547.4,2547.1,1.20608029]
[1646754741258,0.98224,2547.3,2547.1,1.20608029]
[1646754741654,0.98224,2547.3,2547.1,1.21141007]
[1646754742053,0.98224,2547.3,2547.1,2.21125283]
[1646754742294,0.98224,2547.3,2547.1,2.51125283]
[1646754742492,0.98224,2547.3,2547.1,2.50592305]
[1646754742894,0.98224,2547.3,2547.1,2.51125283]
[1646754743496,0.98224,2547.3,2547.1,1.51141007]
[1646754744094,0.98224,2547.3,2547.1,1.51125299]
[1646754744900,0.98224,2547.3,2547.1,1.50608029]
[1646754745200,0.98224,2547.3,2547.1,1.5110731]
[1646754746074,0.98224,2547.3,2547.1,1.50608029]
[1646754746262,6.0362,2547.7,2547.1,1.50608029]
[1646754746263,0.98206,2547.5,2547.1,1.50608029]
[1646754746464,3.7593,2548.2,2547.1,1.50608029]
[1646754746465,0.00499169,2547.6,2547.2,3.8887]
[1646754746661,0.00499169,2547.6,2547.3,0.22412956]
[1646754746858,0.00499169,2547.6,2547.3,1.59469956]
[1646754747059,0.00499169,2547.6,2547.3,1.20599956]
[1646754747264,12.88203,2547.6,2547.3,1.20599956]
[1646754747460,13.35003,2547.6,2547.3,1.20599956]
[1646754747661,0.987179,2547.6,2547.3,4.71114931]
[1646754747863,0.005149,2547.6,2547.3,1.21114931]
[1646754748062,0.005149,2547.6,2547.4,0.92036788]
[1646754748365,0.005149,2547.6,2547.4,2.20229788]
[1646754748565,7.72227789,2548.9,2547.6,0.3887]
[1646754748566,2.9904,2548.7,2547.6,0.3887]
[1646754748761,1.3,2549.0,2547.8,1.3704]
[1646754748762,0.22389544,2548.6,2547.8,1.3704]
[1646754748965,0.22389544,2548.5,2548.0,0.20254532]
[1646754749162,6.0837,2548.8,2548.3,0.87401503]
[1646754749365,0.22389837,2548.7,2548.1,0.25332608]
[1646754749562,13.86359,2548.6,2548.1,0.25332608]
[1646754749797,0.22389837,2548.5,2547.9,0.3]
[1646754749999,0.98193,2548.3,2547.8,0.3]
[1646754750198,0.98193,2548.3,2547.6,0.22679002]
[1646754750397,0.98193,2548.3,2548.2,1.14788886]
[1646754750797,0.98193,2548.3,2548.2,0.57311411]
[1646754750998,0.22401712,2548.3,2548.2,0.27311411]
[1646754751198,0.22401712,2548.3,2547.5,0.23855893]
[1646754751399,0.22401712,2548.3,2548.0,0.23509076]
[1646754751604,0.98197,2548.1,2548.0,0.18509076]
[1646754751801,0.98197,2548.1,2548.0,1.07873743]
[1646754751997,0.98197,2548.1,2548.0,0.18509076]
[1646754754168,13.10624482,2548.1,2548.0,0.18509076]
[1646754754364,13.57424482,2548.1,2548.0,0.18509076]
[1646754754564,13.57424482,2548.1,2547.6,0.22304256]
[1646754754765,0.22427482,2548.0,2547.6,0.22304256]
[1646754754967,1.9643,2547.9,2547.6,1.20515256]
[1646754755371,1.9643,2547.9,2547.6,1.50515256]
[1646754756169,0.22470385,2547.8,2547.6,1.50515256]
[1646754756372,0.69270385,2547.8,2547.6,0.52304256]
[1646754756571,0.22470385,2547.7,2547.6,0.12304256]
[1646754757398,1.08140385,2547.7,2547.5,1.96417]
[1646754757595,12.12470385,2547.6,2547.5,1.96417]
[1646754757796,12.59270385,2547.6,2547.5,1.96417]
[1646754758395,12.59270385,2547.6,2547.3,0.21506576]
[1646754758595,0.22470385,2547.5,2547.3,0.21506576]
[1646754758795,0.69270385,2547.5,2547.3,0.21506576]
[1646754758996,0.22470385,2547.4,2547.3,0.21506576]
[1646754759196,0.22470385,2547.4,2547.2,0.77009708]
[1646754759403,0.22470385,2547.4,2546.5,2.94636]
[1646754759404,0.468,2547.3,2546.5,2.94636]
[1646754759699,0.468,2547.3,2546.0,7.29]
[1646754759700,14.47844385,2547.2,2546.0,7.29]
[1646754759901,14.47844385,2547.2,2545.7,1.96534]
[1646754759902,0.3887,2546.7,2545.7,1.96534]
[1646754760206,0.3887,2546.7,2545.0,8.8586]
[1646754760207,0.3887,2546.5,2545.0,8.8586]
[1646754760400,12.9,2545.9,2545.1,0.20228644]
[1646754760602,12.9,2545.9,2544.6,0.5]
[1646754760603,11.9,2545.4,2544.6,0.5]
[1646754760801,11.9,2545.4,2544.7,0.26247663]
[1646754760802,2.43453,2545.3,2544.7,0.26247663]
[1646754761042,1.0,2545.2,2544.8,0.98315]
[1646754761246,1.0,2545.1,2545.0,0.21226264]
[1646754761546,1.0,2545.1,2544.8,0.98315]
[1646754761746,1.96638,2545.0,2544.6,2.9494]
[1646754761949,1.96638,2545.0,2544.8,0.2310202]
[1646754762143,1.96638,2545.0,2544.9,0.00531365]
[1646754762345,15.36638,2545.0,2544.9,1.365e-05]
[1646754762547,16.4,2544.9,2544.5,0.02125778]
[1646754762744,2.43485,2544.8,2544.5,0.02125778]
[1646754763243,1.98337,2544.6,2544.3,1.96647]
[1646754763443,12.368,2544.5,2544.4,0.25944261]
[1646754763645,13.368,2544.5,2543.8,0.22950648]
[1646754763844,13.368,2544.5,2543.5,0.22549088]
[1646754764045,1.0,2543.8,2543.5,1.20896088]
[1646754764245,0.468,2544.5,2543.5,1.20896088]
[1646754764246,0.98331,2544.2,2543.8,0.21469795]
[1646754764449,0.468,2544.5,2543.8,2.56993795]
[1646754764704,0.468,2544.5,2543.9,0.04092649]
[1646754764705,0.04,2544.3,2543.9,0.04092649]
[1646754764897,0.468,2544.5,2543.9,0.04092649]
[1646754764898,0.508,2544.5,2543.9,0.04092649]
[1646754765100,1.21559908,2544.3,2543.9,1.02419649]
[1646754765300,1.21559908,2544.3,2544.0,0.26395679]
[1646754765504,0.8567,2544.2,2544.0,0.04035807]
[1646754765703,0.8567,2544.2,2544.1,0.00265034]
[1646754765704,0.468,2544.2,2544.1,0.00265034]
[1646754766004,14.39734966,2544.1,2544.0,0.04035807]
[1646754766200,13.86534966,2544.1,2544.0,0.04035807]
[1646754766400,2.96534966,2544.1,2543.8,0.04149491]
[1646754766604,5.91636966,2544.1,2543.8,0.04149491]
[1646754766804,5.44836966,2544.1,2543.8,0.04149491]
[1646754767105,4.44836966,2544.1,2543.8,0.04149491]
[1646754767302,5.44836966,2544.1,2543.8,1.02505491]
[1646754767500,5.44836966,2544.1,2543.9,0.24745808]
[1646754767501,1.0,2544.0,2543.9,0.24745808]
[1646754767701,1.0,2544.0,2543.9,0.54745808]
[1646754768202,1.49734966,2544.1,2543.9,0.54745808]
[1646754768645,1.49734966,2544.1,2544.0,0.04035807]
[1646754768845,1.49734966,2544.1,2544.0,0.34035807]
[1646754771252,1.768,2545.0,2544.0,0.34035807]
[1646754771253,1.0,2544.9,2544.0,0.34035807]
[1646754771454,1.0,2544.9,2544.3,1.23663688]
[1646754771651,13.2887,2544.7,2544.3,0.25347688]
[1646754771853,0.3887,2544.4,2544.0,0.04035807]
[1646754772210,1.0,2544.1,2544.0,0.04035807]
[1646754772396,1.468,2544.1,2544.0,0.04035807]
[1646754772595,2.52210446,2544.1,2544.0,0.04035807]
[1646754772795,3.50576446,2544.1,2544.0,0.04035807]
[1646754773000,3.50576446,2544.1,2544.0,0.26964885]
[1646754773196,1.45166,2544.1,2544.0,0.26964885]
[1646754773598,1.45166,2544.1,2544.0,0.3378791]
[1646754773797,2.45166,2544.1,2544.0,0.3378791]
[1646754774198,1.45166,2544.1,2544.0,0.3378791]
[1646754774399,0.98366,2544.1,2544.0,1.31012994]
[1646754774599,1.0,2544.3,2544.1,0.98335]
[1646754774600,1.98329,2544.3,2544.1,0.98335]
[1646754774804,1.98329,2544.3,2544.1,1.58335]
[1646754774805,0.98329,2544.3,2544.1,1.58335]
[1646754775002,0.98329,2544.3,2544.1,1.53335]
[1646754775404,1.0,2544.2,2544.1,1.28335]
[1646754775605,1.468,2544.2,2544.1,0.3]
[1646754775803,1.468,2544.2,2544.0,2.30970292]
[1646754775804,1.468,2544.2,2544.0,2.60970292]
[1646754776044,1.468,2544.2,2544.0,2.30970292]
[1646754776245,1.0,2544.1,2544.0,2.3045891]
[1646754776644,1.0,2544.1,2544.0,2.30970282]
[1646754777348,1.0,2544.1,2544.0,2.60970282]
[1646754777545,1.468,2544.1,2544.0,2.60970282]
[1646754777946,1.468,2544.1,2544.0,2.6045891]
[1646754778646,1.468,2544.1,2544.0,2.9045891]
[1646754779146,0.98329,2544.3,2544.2,0.24277737]
[1646754779550,1.04329,2544.3,2544.2,0.24277737]
[1646754779797,1.04329,2544.3,2544.2,1.19480063]
[1646754779798,0.98329,2544.3,2544.2,1.19480063]
[1646754780298,0.98329,2544.3,2544.2,0.24277737]
[1646754781399,1.98329,2544.3,2544.2,0.24277737]
[1646754781800,14.35129,2544.3,2544.2,0.24277737]
[1646754781998,16.9,2544.2,2544.0,0.11331422]
[1646754782197,0.468,2544.1,2544.0,0.11331422]
[1646754782398,2.65451341,2544.1,2544.0,0.10858832]
[1646754782602,2.65451341,2544.1,2544.0,0.11328228]
[1646754782801,4.419,2544.1,2544.0,0.11328228]
[1646754783101,3.419,2544.1,2544.0,0.11328228]
[1646754783650,3.419,2544.1,2544.0,0.04035807]
[1646754784053,16.9,2544.0,2543.9,0.00486015]
[1646754784250,19.35177,2544.0,2543.9,0.00486015]
[1646754784550,4.0,2543.9,2543.5,0.01944353]
[1646754784755,14.33557,2543.8,2543.5,0.01944353]
[1646754784957,1.0,2543.6,2543.3,0.0134168]
[1646754785258,0.468,2543.6,2543.4,1.98666389]
[1646754785656,1.45175,2543.6,2543.4,1.98666389]
[1646754785856,1.0,2543.5,2543.4,1.98666389]
[1646754786057,1.0,2543.5,2543.4,1.96722]
[1646754788900,2.10098411,2543.5,2543.4,1.96722]
[1646754789099,1.0,2543.5,2543.4,1.96722]
[1646754789301,1.468,2543.5,2543.4,1.96722]
[1646754789501,1.468,2543.5,2543.3,2.28557784]
[1646754789700,1.96782,2543.4,2543.3,0.01832784]
[1646754789904,1.96782,2543.4,2543.2,0.01040384]
[1646754789905,5.0,2543.3,2543.2,0.01040384]
[1646754790109,20.868,2543.3,2543.2,0.01040384]
[1646754790310,19.368,2543.3,2543.2,0.01040384]
[1646754790509,15.4,2543.2,2543.1,0.01733824]
[1646754790705,19.82025,2543.2,2543.1,0.01733824]
[1646754790951,15.9,2543.1,2543.0,0.03050616]
[1646754791151,17.35206,2543.1,2543.0,0.03050616]
[1646754791458,11.9,2542.9,2542.1,3.09754]
[1646754791651,4.45206,2543.1,2542.1,3.02220541]
[1646754791652,1.46600042,2542.8,2542.1,3.02220541]
[1646754791851,1.468,2542.8,2542.1,3.02220541]
[1646754792349,1.468,2542.8,2542.6,1.96816]
[1646754792552,1.468,2542.8,2542.6,2.56816]
[1646754792749,13.368,2542.8,2542.6,2.56816]
[1646754792949,1.468,2542.8,2542.6,2.56816]
[1646754793152,1.468,2542.8,2542.6,2.26816]
[1646754793350,2.45214,2542.8,2542.6,2.26816]
[1646754793950,2.45214,2542.8,2542.6,3.25223]
[1646754794803,2.45214,2542.8,2542.6,3.55752884]
[1646754794804,1.45214,2542.8,2542.6,3.55752884]
[1646754796804,1.45214,2542.8,2542.6,3.55223]
[1646754797003,1.45214,2542.8,2542.6,3.55752884]
[1646754798006,1.45214,2542.8,2542.6,3.55223]
[1646754798445,1.45214,2542.8,2542.6,3.55752884]
[1646754798650,1.45214,2542.8,2542.7,0.08356466]
[1646754799249,2.45214,2542.8,2542.7,0.04173988]
[1646754800052,2.45214,2542.8,2542.7,0.27976927]
[1646754800554,1.45214,2542.8,2542.7,0.27976927]
[1646754802501,1.468,2542.8,2542.7,0.27976927]
[1646754803600,0.468,2542.8,2542.7,0.27976927]
[1646754803999,1.96828,2542.9,2542.7,0.24525065]
[1646754804401,1.96828,2542.9,2542.8,0.98949701]
[1646754804603,1.96828,2542.9,2542.8,0.58949701]
[1646754805705,1.96828,2542.9,2542.8,0.3]
[1646754805948,2.96828,2542.9,2542.7,0.54517259]
[1646754806144,2.96828,2542.9,2542.7,0.24517259]
[1646754806545,7.13842,2543.1,2542.8,0.98377]
[1646754806546,1.0,2543.0,2542.8,0.98377]
[1646754806745,0.98412,2543.1,2542.8,1.28377]
[1646754806948,1.0,2543.3,2542.8,1.28377]
[1646754806949,1.98369,2543.3,2542.8,1.67247]
[1646754807144,5.939,2543.7,2542.8,0.6887]
[1646754807145,1.0,2543.6,2542.8,0.6887]
[1646754807347,0.45547667,2543.5,2542.8,0.6887]
[1646754807645,1.96719,2543.8,2543.7,0.90516154]
[1646754807846,3.42275757,2543.8,2543.3,2.95055]
[1646754808047,0.45556757,2543.7,2543.5,0.98352]
[1646754808247,1.45556757,2543.7,2543.6,0.21909288]
[1646754808646,0.45556757,2543.7,2543.6,0.21909288]
[1646754809047,1.45556757,2543.7,2543.6,0.21909288]
[1646754810106,1.92356757,2543.7,2543.4,1.96703]
[1646754810305,0.45556757,2543.6,2543.5,0.2681023]
[1646754810505,0.45556757,2543.6,2542.4,0.3933]
[1646754810506,12.2887,2543.4,2542.4,0.3933]
[1646754810710,16.24426757,2543.3,2542.7,0.0071432]
[1646754810911,1.0,2542.8,2542.7,0.22591956]
[1646754811111,1.45556757,2542.8,2542.7,0.0071432]
[1646754811708,1.92356757,2542.8,2542.7,0.0071432]
[1646754812106,1.87356757,2542.8,2542.7,0.0071432]
[1646754812508,0.92356757,2542.8,2542.7,0.0071432]
[1646754813106,1.92356757,2542.8,2542.7,0.0071432]
[1646754813306,2.79708643,2542.8,2542.7,0.0071432]
[1646754813947,2.79708643,2542.8,2542.6,0.00493782]
[1646754813948,16.9071,2542.7,2542.6,0.00493782]
[1646754814148,16.9071,2542.7,2541.4,0.01779036]
[1646754814149,16.9,2542.5,2541.4,0.01779036]
[1646754814347,16.71226757,2542.4,2541.4,0.01779036]
[1646754814547,16.71226757,2542.4,2541.5,1.976739]
[1646754814548,12.2887,2542.2,2541.5,1.976739]
[1646754814749,12.2887,2541.9,2541.7,0.20539354]
[1646754814952,12.82356757,2541.8,2541.7,0.21891626]
[1646754815250,5.0,2541.7,2541.5,1.976739]
[1646754815450,0.92356757,2541.8,2541.5,1.976739]
[1646754815451,0.92356757,2541.6,2541.5,1.976739]
[1646754815652,0.92356757,2541.6,2541.5,0.86252961]
[1646754815853,1.92356757,2541.6,2541.5,0.007949]
[1646754816254,4.5,2541.5,2541.4,0.01779036]
[1646754816452,3.87780757,2541.5,2541.4,0.03612555]
[1646754816649,4.87780757,2541.5,2541.4,0.03612555]
[1646754816949,4.5,2541.4,2541.0,0.00975021]
[1646754817212,0.468,2541.3,2541.0,1.97897021]
[1646754817402,1.90204077,2541.1,2541.0,1.97897021]
[1646754817601,1.0,2541.1,2541.0,1.96922]
[1646754818001,1.98476,2541.2,2541.0,1.96922]
[1646754818201,1.0,2541.6,2541.0,1.96922]
[1646754818601,0.98443,2541.4,2541.1,1.11620061]
[1646754819201,0.98443,2541.4,2541.1,0.98456]
[1646754819600,0.98443,2541.4,2541.0,1.33414751]
[1646754819601,1.98443,2541.4,2541.0,1.33414751]
[1646754819805,1.0,2541.2,2541.0,1.33414751]
[1646754820005,1.98465,2541.2,2541.1,0.00256905]
[1646754820404,2.85821649,2541.2,2541.1,0.00256905]
[1646754820805,3.32621649,2541.2,2541.0,1.17152927]
[1646754821055,16.7887,2541.1,2540.8,1.9694]
[1646754821253,17.4,2541.1,2541.0,0.00526502]
[1646754821459,1.0,2541.1,2541.0,0.00526502]
[1646754821753,2.468,2541.1,2541.0,0.00526502]
[1646754821954,1.468,2541.1,2541.0,0.00526502]
[1646754822154,1.468,2541.1,2540.9,0.98469]
[1646754822354,0.468,2541.1,2540.9,0.98469]
[1646754822556,1.0,2541.0,2540.9,0.98469]
[1646754822755,1.98468,2541.0,2540.8,1.4694]
[1646754822958,1.98468,2541.0,2540.6,1.96967]
[1646754822959,1.98468,2541.0,2540.6,1.27030119]
[1646754823159,2.04500313,2540.9,2540.6,1.27030119]
[1646754823357,1.0,2540.7,2540.6,1.27030119]
[1646754823558,1.468,2540.7,2540.6,1.27030119]
[1646754823960,0.468,2540.7,2540.6,1.27030119]
[1646754824560,0.98468,2541.0,2540.6,1.27030119]
[1646754824803,9.65804,2541.2,2540.6,1.57030119]
[1646754825204,7.2346,2541.7,2541.1,1.17513562]
[1646754825205,0.468,2541.5,2541.1,1.17513562]
[1646754825404,1.0,2541.7,2541.1,2.15957562]
[1646754825607,5.8796,2541.8,2541.1,2.54827562]
[1646754825803,5.8796,2541.8,2541.3,1.20577996]
[1646754826205,6.8796,2541.8,2541.3,1.50577996]
[1646754826406,1.0,2541.8,2541.3,0.52135996]
[1646754826609,2.13792403,2541.7,2541.3,0.52135996]
[1646754826806,1.0,2541.5,2541.3,0.52135996]
[1646754827006,1.0,2541.5,2541.3,2.49002996]
[1646754827007,1.98446,2541.5,2541.3,2.49002996]
[1646754827209,1.98446,2541.5,2541.3,2.79002996]
[1646754827609,1.98446,2541.5,2541.3,2.19002996]
[1646754828747,1.468,2541.4,2541.3,2.19002996]
[1646754828945,1.468,2541.4,2541.3,2.49002996]
[1646754829151,1.468,2541.4,2541.3,2.19002996]
[1646754829152,2.04518993,2541.4,2541.3,2.19002996]
[1646754829751,11.9,2541.3,2541.1,2.87258479]
[1646754829950,16.44518993,2541.2,2541.0,0.00499302]
[1646754830150,0.57718993,2541.1,2541.0,0.00499302]
[1646754830351,2.04518993,2541.1,2541.0,0.00499302]
[1646754830552,4.05222878,2541.1,2540.8,1.96972]
[1646754830749,4.47503885,2541.1,2540.9,0.24500653]
[1646754830950,0.57319372,2541.0,2540.9,0.24500653]
[1646754831151,2.04119372,2541.0,2540.9,0.24500653]
[1646754831552,3.04119372,2541.0,2540.9,0.24500653]
[1646754832212,1.468,2541.0,2540.9,0.24500653]
[1646754832799,0.468,2541.0,2540.9,0.24500653]
[1646754833201,1.9849,2541.2,2540.9,1.25625532]
[1646754833202,0.9849,2541.2,2540.9,1.25625532]
[1646754833401,0.9849,2541.2,2541.0,0.9846]
[1646754833600,0.9849,2541.2,2541.1,0.26196755]
[1646754834002,1.9849,2541.2,2541.1,0.26196755]
[1646754835104,2.55825268,2541.2,2541.1,0.26196755]
[1646754836150,5.0767103,2541.2,2541.1,0.26196755]
[1646754836351,4.02625268,2541.2,2541.1,0.26196755]
[1646754836650,3.02625268,2541.2,2541.1,0.26196755]
[1646754836851,2.02625268,2541.2,2541.1,0.26196755]
[1646754837251,1.55825268,2541.2,2541.1,0.26196755]
[1646754838550,1.55825268,2541.2,2541.1,1.18030441]
[1646754838950,1.55825268,2541.2,2541.1,0.26196755]
[1646754839555,2.55806003,2541.2,2541.1,0.26196755]
[1646754839806,2.55806003,2541.2,2540.9,2.79193679]
[1646754840007,1.9849,2541.2,2540.9,2.79193679]
[1646754840306,0.468,2541.6,2541.0,3.20315929]
[1646754840307,1.0,2541.1,2541.0,3.20315929]
[1646754840506,1.71287152,2542.1,2541.0,7.05725929]
[1646754840707,1.25528527,2542.1,2541.2,0.3887]
[1646754840905,1.0,2542.2,2541.4,0.3887]
[1646754840906,0.54138464,2542.0,2541.4,0.3887]
[1646754841106,0.71483791,2542.6,2542.3,1.17944788]
[1646754841307,0.71483791,2542.6,2542.3,0.24467774]
[1646754841507,0.71390063,2542.5,2542.3,0.24467774]
[1646754842109,1.0,2542.4,2542.3,0.24467774]
[1646754842307,0.71147304,2543.0,2542.3,7.24467774]
[1646754842508,2.43030723,2543.4,2542.8,1.37232]
[1646754842509,1.73892119,2543.4,2542.8,1.37232]
[1646754842708,0.94863072,2543.6,2542.9,0.3887]
[1646754842906,0.94863072,2543.9,2543.0,0.25910789]